bitfinex/quotes_BTCUSD_20251231
["timestamp","ask_amount","ask_price","bid_price","bid_amount"]
[1767175629613,0.02437203,88776.0,88762.0,0.06875]
[1767175629814,0.02437203,88775.0,88762.0,0.06875]
[1767175630011,0.01126417,88777.0,88762.0,0.06875]
[1767175630395,0.0112643,88776.0,88762.0,0.06875]
[1767175630808,0.02437111,88776.0,88762.0,0.02254608]
[1767175631021,0.01126405,88778.0,88763.0,0.05371]
[1767175632859,0.06758537,88777.0,88763.0,0.05371]
[1767175633158,0.0112643,88776.0,88763.0,0.05371]
[1767175634168,0.01126443,88775.0,88763.0,0.05371]
[1767175634970,0.0112643,88776.0,88763.0,0.05371]
[1767175638184,0.01126443,88775.0,88763.0,0.05371]
[1767175638881,0.01126417,88777.0,88763.0,0.05371]
[1767175639052,0.03563035,88777.0,88763.0,0.05371]
[1767175639254,0.02436618,88777.0,88763.0,0.05371]
[1767175639472,0.02436566,88778.0,88765.0,0.05482]
[1767175639671,0.05699,88779.0,88765.0,0.0660857]
[1767175639906,0.05699,88779.0,88765.0,0.05482]
[1767175640083,0.05699,88779.0,88765.0,0.0660857]
[1767175640288,0.05699,88779.0,88765.0,0.05482]
[1767175640887,0.06825392,88779.0,88765.0,0.05482]
[1767175641088,0.05699,88779.0,88764.0,0.01805197]
[1767175642020,0.06825392,88779.0,88764.0,0.01805197]
[1767175642590,0.01126405,88778.0,88764.0,0.01805197]
[1767175644543,0.06825392,88779.0,88764.0,0.01805197]
[1767175644734,0.01126405,88778.0,88764.0,0.01805197]
[1767175646214,0.12457397,88779.0,88764.0,0.01805197]
[1767175646439,0.06825392,88779.0,88764.0,0.01805197]
[1767175647331,0.05699,88779.0,88764.0,0.01805197]
[1767175648246,0.05699,88779.0,88764.0,0.02931779]
[1767175648983,0.0002,88780.0,88765.0,0.05482]
[1767175649791,0.0002,88780.0,88766.0,0.01126557]
[1767175650000,0.0002,88780.0,88764.0,0.07438059]
[1767175650001,0.0002,88780.0,88771.0,0.05482]
[1767175650238,0.0002,88780.0,88764.0,0.01805197]
[1767175650239,0.01126455,88774.0,88753.0,0.05482]
[1767175650409,0.05699,88768.0,88754.0,0.01128]
[1767175650567,0.2610721,88770.0,88760.0,0.01126633]
[1767175650767,0.05699,88774.0,88762.0,0.01126608]
[1767175650975,0.05699,88774.0,88759.0,0.05482]
[1767175651394,0.05699,88774.0,88759.0,0.06608646]
[1767175651794,0.05699,88774.0,88759.0,0.05482]
[1767175652569,0.2610721,88770.0,88759.0,0.06608646]
[1767175652774,0.2610721,88770.0,88760.0,0.01126633]
[1767175653104,0.2612721,88770.0,88760.0,0.01122349]
[1767175653513,0.2612721,88770.0,88759.0,0.06608646]
[1767175653712,0.2612721,88770.0,88759.0,0.12241837]
[1767175654057,0.2612721,88770.0,88760.0,0.01128]
[1767175656854,0.0002,88770.0,88760.0,0.01128]
[1767175657016,0.0002,88770.0,88760.0,0.02254633]
[1767175657243,0.0002,88770.0,88760.0,0.01128]
[1767175660205,0.000549,88760.0,88752.0,0.06624155]
[1767175660404,0.000549,88760.0,88756.0,0.05482]
[1767175660604,0.000549,88760.0,88757.0,0.01128]
[1767175660811,0.05699,88756.0,88752.0,0.0001542]
[1767175660967,0.22531565,88765.0,88752.0,0.0001542]
[1767175660968,0.06825646,88759.0,88752.0,0.0001542]
[1767175661181,0.01126646,88759.0,88752.0,0.0001542]
[1767175661581,0.01126671,88757.0,88752.0,2e-07]
[1767175661782,0.01126659,88758.0,88752.0,2e-07]
[1767175662110,0.01126646,88759.0,88752.0,2e-07]
[1767175662456,0.01126671,88757.0,88752.0,2e-07]
[1767175662734,0.01126684,88756.0,88750.0,0.00015712]
[1767175663026,0.01126684,88756.0,88750.0,1.2e-07]
[1767175663233,0.01126697,88755.0,88750.0,1.2e-07]
[1767175663388,0.01126684,88756.0,88750.0,1.2e-07]
[1767175663595,0.01126671,88757.0,88750.0,1.2e-07]
[1767175663801,0.01126671,88757.0,88748.0,0.01123844]
[1767175664003,0.01126684,88756.0,88748.0,0.01100044]
[1767175664399,0.01126697,88755.0,88748.0,0.01100044]
[1767175664610,0.01146659,88758.0,88748.0,0.01100044]
[1767175665134,0.01126671,88757.0,88748.0,0.01100044]
[1767175665449,0.01126684,88756.0,88748.0,0.01100044]
[1767175665608,0.01126671,88757.0,88748.0,0.01100044]
[1767175665974,0.01126671,88757.0,88743.0,0.07339368]
[1767175666201,0.01126671,88757.0,88741.0,0.0001869]
[1767175666202,2.829e-05,88743.0,88741.0,0.0001869]
[1767175666402,0.11333349,88742.0,88738.0,0.0002]
[1767175666605,0.01126938,88736.0,88730.0,0.0001869]
[1767175666805,0.07724938,88736.0,88730.0,0.00023073]
[1767175667059,0.0547,88733.0,88730.0,0.00023073]
[1767175668688,0.01128,88736.0,88730.0,0.00023073]
[1767175668892,0.01128,88736.0,88733.0,0.000521]
[1767175669055,0.01128,88736.0,88724.0,0.05363565]
[1767175669863,0.01128,88736.0,88724.0,0.05359223]
[1767175675854,0.01073,88736.0,88727.0,0.05593]
[1767175676726,0.02199938,88736.0,88727.0,0.05593]
[1767175676926,0.01073,88736.0,88727.0,0.055381]
[1767175677144,0.02199938,88736.0,88727.0,0.055381]
[1767175677678,0.01073,88736.0,88727.0,0.055381]
[1767175677881,0.01126951,88735.0,88727.0,0.055381]
[1767175678104,0.02199938,88736.0,88727.0,0.055381]
[1767175679528,0.01126951,88735.0,88727.0,0.055381]
[1767175679751,0.01126951,88735.0,88726.0,0.0002]
[1767175679957,0.01126963,88734.0,88726.0,0.0002]
[1767175680151,0.01126951,88735.0,88726.0,0.0002]
[1767175680753,0.07669938,88736.0,88726.0,0.0002]
[1767175681315,0.01126963,88734.0,88726.0,0.0002]
[1767175682041,0.01126951,88735.0,88726.0,0.0002]
[1767175682243,0.13304673,88736.0,88726.0,0.0002]
[1767175682443,0.01126951,88735.0,88726.0,0.0002]
[1767175683258,0.07669938,88736.0,88726.0,0.0002]
[1767175683442,0.06543,88736.0,88726.0,0.0002]
[1767175683856,0.07669938,88736.0,88726.0,0.0002]
[1767175685022,0.06543,88736.0,88726.0,0.0002]
[1767175685595,0.07669938,88736.0,88726.0,0.0002]
[1767175685970,0.06543,88736.0,88726.0,0.0002]
[1767175686174,0.07669938,88736.0,88726.0,0.0002]
[1767175686569,0.01126951,88735.0,88726.0,0.0002]
[1767175687443,0.01126963,88734.0,88726.0,0.0002]
[1767175688551,0.13304659,88736.0,88726.0,0.0002]
[1767175688761,0.01126963,88734.0,88726.0,0.0002]
[1767175689546,0.07669938,88736.0,88726.0,0.0002]
[1767175689748,0.01126951,88735.0,88726.0,0.0002]
[1767175689924,0.01126976,88733.0,88726.0,0.0002]
[1767175690130,0.01126963,88734.0,88726.0,0.0002]
[1767175690868,0.01126951,88735.0,88726.0,0.0002]
[1767175691090,0.33802283,88736.0,88726.0,0.0002]
[1767175691227,0.32675345,88736.0,88726.0,0.0002]
[1767175692849,0.33802283,88736.0,88726.0,0.0002]
[1767175693050,0.32675345,88736.0,88726.0,0.0002]
[1767175693256,0.33802283,88736.0,88726.0,0.0002]
[1767175693454,0.32675345,88736.0,88726.0,0.0002]
[1767175693649,0.33802283,88736.0,88726.0,0.0002]
[1767175694063,0.01126989,88732.0,88726.0,0.0002]
[1767175694376,0.01126976,88733.0,88726.0,0.0002]
[1767175696259,0.05634857,88734.0,88726.0,0.0002]
[1767175696455,0.01126963,88734.0,88726.0,0.0002]
[1767175697358,0.01126951,88735.0,88726.0,0.0002]
[1767175697585,0.01126976,88733.0,88726.0,0.0002]
[1767175698895,0.01126976,88733.0,88726.0,0.00015719]
[1767175699724,0.01126963,88734.0,88726.0,0.00015719]
[1767175700680,0.01126951,88735.0,88726.0,0.00015719]
[1767175701078,0.01126963,88734.0,88726.0,0.00015719]
[1767175701762,0.01126976,88733.0,88726.0,0.00015719]
[1767175702138,0.01126976,88733.0,88726.0,0.00011371]
[1767175703560,0.01126963,88734.0,88726.0,0.00011371]
[1767175703801,0.06761734,88735.0,88726.0,0.00011371]
[1767175703961,0.01126951,88735.0,88726.0,0.00011371]
[1767175704380,0.01126951,88735.0,88726.0,7.145e-05]
[1767175705382,0.01126951,88735.0,88726.0,2.944e-05]
[1767175705793,0.01126963,88734.0,88726.0,2.944e-05]
[1767175706033,0.01126951,88735.0,88726.0,2.944e-05]
[1767175706180,0.01126951,88735.0,88721.0,0.0546674]
[1767175708933,0.07552938,88736.0,88721.0,0.0546674]
[1767175709295,0.07552938,88736.0,88721.0,0.05462582]
[1767175709518,0.06426,88736.0,88721.0,0.05462582]
[1767175710042,0.06426,88736.0,88721.0,0.05458254]
[1767175710687,0.01073,88736.0,88721.0,0.06585382]
[1767175710822,0.01073,88736.0,88726.0,0.05468]
[1767175711009,0.01073,88736.0,88726.0,0.05463849]
[1767175711214,0.010181,88736.0,88726.0,0.05463849]
[1767175712880,0.010181,88736.0,88726.0,0.06590914]
[1767175713261,0.010181,88736.0,88726.0,0.05463849]
[1767175715765,0.010181,88736.0,88720.0,0.05468]
[1767175715967,0.010181,88736.0,88721.0,0.01127128]
[1767175716371,0.010181,88736.0,88720.0,0.06595141]
[1767175716757,0.26132345,88730.0,88721.0,0.01127128]
[1767175716954,0.26132345,88730.0,88720.0,0.06595141]
[1767175717153,0.26132345,88730.0,88721.0,0.01127128]
[1767175717360,0.010181,88736.0,88721.0,0.01127128]
[1767175717785,0.01126951,88735.0,88720.0,0.05468]
[1767175718219,0.02145038,88736.0,88720.0,0.05468]
[1767175718866,0.01126951,88735.0,88720.0,0.05468]
[1767175719268,0.01126976,88733.0,88720.0,0.05468]
[1767175719469,0.0777976,88736.0,88720.0,0.05468]
[1767175719667,0.01126951,88735.0,88720.0,0.05468]
[1767175720075,0.01766324,88794.0,88717.0,0.01128]
[1767175720076,0.01126887,88740.0,88719.0,0.05468]
[1767175720353,0.01126925,88737.0,88724.0,0.05468]
[1767175720590,0.01126912,88738.0,88724.0,0.05468]
[1767175720766,0.01126925,88737.0,88724.0,0.05468]
[1767175720983,0.26132345,88734.0,88724.0,0.05468]
[1767175721163,0.05353,88736.0,88719.0,0.01162554]
[1767175721668,0.06479938,88736.0,88719.0,0.01162554]
[1767175721867,0.26132345,88730.0,88720.0,0.01127141]
[1767175722408,0.05353,88736.0,88720.0,0.01127141]
[1767175722777,0.05353,88736.0,88719.0,0.06630554]
[1767175723180,0.05353,88736.0,88720.0,0.01127141]
[1767175723693,0.05353,88736.0,88721.0,0.01127128]
[1767175723902,0.02254912,88738.0,88721.0,0.05468]
[1767175724100,0.02254912,88738.0,88721.0,0.06595128]
[1767175724282,0.01128,88738.0,88723.0,0.01127103]
[1767175724485,0.01128,88738.0,88724.0,0.05468]
[1767175726392,0.01128,88738.0,88726.0,0.05454]
[1767175726598,0.01128,88738.0,88727.0,0.05454]
[1767175726797,0.01128,88738.0,88731.0,0.05454]
[1767175727264,0.05633907,88749.0,88731.0,0.05454]
[1767175727383,0.01126811,88746.0,88731.0,0.05454]
[1767175728051,0.02436593,88747.0,88733.0,0.05454]
[1767175728196,0.01128,88748.0,88733.0,0.05454]
[1767175729886,0.02254785,88748.0,88733.0,0.05454]
[1767175730092,0.02254785,88748.0,88735.0,0.05454]
[1767175730924,0.01128,88748.0,88735.0,0.05454]
[1767175733463,0.02254785,88748.0,88735.0,0.05454]
[1767175733641,0.01128,88748.0,88735.0,0.05454]
[1767175735394,0.02254785,88748.0,88735.0,0.05454]
[1767175735589,0.01128,88748.0,88735.0,0.05454]
[1767175740793,0.01128,88748.0,88735.0,0.06580951]
[1767175740973,0.01128,88748.0,88736.0,0.01126938]
[1767175741176,0.01128,88748.0,88736.0,0.06580938]
[1767175741378,0.0001674,88751.0,88739.0,0.05454]
[1767175741588,0.0001674,88751.0,88741.0,0.05454]
[1767175741990,0.0001674,88751.0,88745.0,0.01805197]
[1767175742211,0.0001674,88751.0,88745.0,0.07259197]
[1767175743382,0.0001674,88751.0,88745.0,0.05454]
[1767175744011,0.0001674,88751.0,88746.0,0.01805197]
[1767175744215,0.0001674,88751.0,88747.0,0.05392475]
[1767175744382,0.0001674,88751.0,88747.0,0.06519273]
[1767175744586,0.00051822,88756.0,88747.0,0.01126798]
[1767175744809,0.00051822,88756.0,88748.0,0.06580785]
[1767175745228,0.00062431,88756.0,88748.0,0.05454]
[1767175746320,0.00062431,88756.0,88749.0,0.01128]
[1767175747010,0.00062431,88756.0,88749.0,0.06582]
[1767175752284,0.00062431,88756.0,88749.0,0.01128]
[1767175758360,0.00062431,88756.0,88749.0,0.010731]
[1767175758700,0.00062431,88756.0,88749.0,0.01068783]
[1767175763506,0.00062431,88756.0,88749.0,0.02195556]
[1767175764182,0.00062431,88756.0,88749.0,0.01068783]
[1767175764585,0.00062431,88756.0,88749.0,0.02195556]
[1767175765121,0.00062431,88756.0,88749.0,0.01068783]
[1767175774123,0.00062431,88756.0,88749.0,0.02195556]
[1767175774320,0.00062431,88756.0,88749.0,0.01068783]
[1767175774526,0.00062431,88756.0,88749.0,0.02195556]
[1767175774741,0.0675916,88769.0,88749.0,0.02195556]
[1767175774742,0.0002,88770.0,88759.0,0.01126646]
[1767175774942,0.0002,88770.0,88762.0,0.01805197]
[1767175775202,0.0002,88770.0,88763.0,0.01126595]
[1767175775547,0.0002,88770.0,88762.0,0.02931805]
[1767175776184,0.0002,88770.0,88762.0,0.01805197]
[1767175776366,0.0002,88770.0,88762.0,0.02931805]
[1767175776549,0.0002,88770.0,88762.0,0.01805197]
[1767175777166,0.0002,88770.0,88762.0,0.02931805]
[1767175777406,0.0002,88770.0,88762.0,0.01805197]
[1767175777739,0.0002,88770.0,88763.0,0.01126595]
[1767175778799,0.0002,88770.0,88763.0,0.06759552]
[1767175779001,0.0002,88770.0,88764.0,0.06759433]
[1767175779204,0.0001478,88773.0,88767.0,0.06184544]
[1767175779420,0.0001478,88773.0,88767.0,0.06186]
[1767175779819,0.0001478,88773.0,88767.0,0.07312544]
[1767175780528,0.0001478,88773.0,88767.0,0.06186]
[1767175780704,0.0001478,88773.0,88767.0,0.07312544]
[1767175781600,0.0001478,88773.0,88769.0,0.05058]
[1767175781825,0.0001478,88773.0,88767.0,0.01128]
[1767175782027,0.0001478,88773.0,88767.0,0.02254544]
[1767175782241,0.0001478,88773.0,88769.0,0.05058]
[1767175783648,0.0001478,88773.0,88767.0,0.01128]
[1767175786352,0.0001478,88773.0,88767.0,0.01123825]
[1767175786964,0.0001478,88773.0,88767.0,0.02250369]
[1767175787574,0.0001478,88773.0,88767.0,0.01123825]
[1767175787756,0.0001478,88773.0,88767.0,0.02250369]
[1767175789375,0.0001478,88773.0,88768.0,0.06319532]
[1767175789586,0.0001478,88773.0,88768.0,0.05193]
[1767175790476,0.0001478,88773.0,88767.0,0.02250369]
[1767175792279,0.0001478,88773.0,88767.0,0.01123825]
[1767175794105,0.0001478,88773.0,88767.0,0.01103825]
[1767175794554,0.0001478,88773.0,88767.0,0.01099512]
[1767175800896,0.0001478,88773.0,88767.0,0.02226056]
[1767175801059,0.0001478,88773.0,88767.0,0.01099512]
[1767175801260,0.0001478,88773.0,88767.0,0.02226056]
[1767175801482,0.0001478,88773.0,88767.0,0.02221758]
[1767175801695,0.0001478,88773.0,88767.0,0.01095214]
[1767175801923,0.0002,88780.0,88768.0,0.06319532]
[1767175802139,0.0002,88780.0,88773.0,0.000147]
[1767175802341,0.0002,88780.0,88774.0,0.01121848]
[1767175802703,0.0002,88780.0,88774.0,0.01117588]
[1767175803341,0.05631358,88789.0,88774.0,0.01117588]
[1767175803342,0.0002,88793.0,88782.0,0.05193]
[1767175803561,0.0002,88793.0,88783.0,0.02254341]
[1767175803562,0.00025391,88791.0,88783.0,0.02254341]
[1767175803740,0.00025391,88791.0,88784.0,0.01126329]
[1767175804135,0.00025391,88791.0,88783.0,0.02254341]
[1767175804375,0.00025391,88791.0,88784.0,0.01126329]
[1767175804827,0.00025391,88791.0,88783.0,0.01128]
[1767175804828,0.00010611,88791.0,88783.0,0.01128]
[1767175805034,0.00010611,88791.0,88784.0,0.01128]
[1767175805035,0.00020691,88791.0,88784.0,0.01128]
[1767175805163,0.00020691,88791.0,88782.0,0.05193]
[1767175805364,0.00020691,88791.0,88783.0,0.01128]
[1767175805708,0.00020691,88791.0,88784.0,0.01128]
[1767175806045,0.00020691,88791.0,88782.0,0.05193]
[1767175806199,0.00020691,88791.0,88785.0,0.01128]
[1767175806578,0.00020691,88791.0,88786.0,0.01128]
[1767175806998,0.00020691,88791.0,88782.0,0.06319354]
[1767175807211,0.00020691,88791.0,88787.0,0.01128]
[1767175807517,0.00020691,88791.0,88783.0,0.01126341]
[1767175807719,0.00020691,88791.0,88784.0,0.01128]
[1767175808095,0.00020691,88791.0,88785.0,0.01128]
[1767175808496,0.00020691,88791.0,88783.0,0.01126341]
[1767175808702,0.00020691,88791.0,88784.0,0.02254329]
[1767175808905,0.00020691,88791.0,88784.0,0.01128]
[1767175809106,0.00020691,88791.0,88785.0,0.01128]
[1767175809512,0.00020691,88791.0,88782.0,0.06319354]
[1767175809705,0.00020691,88791.0,88786.0,0.01128]
[1767175810545,0.00020691,88791.0,88782.0,0.11951066]
[1767175810773,0.00020691,88791.0,88783.0,0.02254341]
[1767175811150,0.00020691,88791.0,88784.0,0.02254329]
[1767175811357,0.00020691,88791.0,88784.0,0.01128]
[1767175811557,0.00020691,88791.0,88782.0,0.06319354]
[1767175811719,0.00020691,88791.0,88785.0,0.01128]
[1767175811923,0.00020691,88791.0,88782.0,0.06319354]
[1767175812134,0.00020691,88791.0,88783.0,0.01128]
[1767175812543,0.00020691,88791.0,88782.0,0.06319354]
[1767175812758,0.00020691,88791.0,88784.0,0.01128]
[1767175812935,0.00020691,88791.0,88783.0,0.01126341]
[1767175813135,0.00020691,88791.0,88784.0,0.01128]
[1767175813541,0.00020691,88791.0,88785.0,0.01128]
[1767175813925,0.00020691,88791.0,88782.0,0.05193]
[1767175813926,0.00020691,88791.0,88782.0,0.06319354]
[1767175814126,0.00020691,88791.0,88783.0,0.01128]
[1767175814556,0.00020691,88791.0,88784.0,0.01128]
[1767175814975,0.00020691,88791.0,88782.0,0.06319354]
[1767175815173,0.00020691,88791.0,88783.0,0.02254341]
[1767175815414,0.00020691,88791.0,88784.0,0.01126329]
[1767175815600,0.00020691,88791.0,88785.0,0.01128]
[1767175816063,0.00020691,88791.0,88786.0,0.01128]
[1767175816284,0.0002,88802.0,88790.0,0.01805197]
[1767175816500,0.0002,88802.0,88790.0,0.27899951]
[1767175816705,0.04993,88801.0,88790.0,0.01805197]
[1767175816904,0.26094754,88800.0,88790.0,0.01805197]
[1767175818988,0.04993,88801.0,88790.0,0.01805197]
[1767175820843,0.26094754,88800.0,88790.0,0.01805197]
[1767175821042,0.04993,88801.0,88790.0,0.01805197]
[1767175822933,0.26094754,88800.0,88790.0,0.01805197]
[1767175824131,0.04993,88801.0,88790.0,0.01805197]
[1767175827060,0.26094754,88800.0,88790.0,0.01805197]
[1767175829398,0.04993,88801.0,88790.0,0.01805197]
[1767175829729,0.26094754,88800.0,88790.0,0.01805197]
[1767175830824,0.04993,88801.0,88790.0,0.01805197]
[1767175831007,0.26094754,88800.0,88790.0,0.01805197]
[1767175836962,0.0002,88810.0,88800.0,0.000343]
[1767175837107,0.26114754,88810.0,88800.0,0.000343]
[1767175837307,0.26114754,88810.0,88798.0,0.01128]
[1767175837308,0.26114754,88810.0,88798.0,0.02254151]
[1767175837523,0.26114754,88810.0,88797.0,0.02254164]
[1767175837709,0.26114754,88810.0,88798.0,0.01126151]
[1767175837911,0.0002,88835.0,88819.0,0.04902]
[1767175838111,0.03381003,88855.0,88836.0,0.01799321]
[1767175838112,0.03042223,88855.0,88836.0,0.01799321]
[1767175838386,0.0001979,88868.0,88854.0,0.01805197]
[1767175838604,0.0001979,88868.0,88855.0,0.060134]
[1767175838804,0.0001979,88868.0,88855.0,0.0600916]
[1767175839128,0.0001979,88868.0,88855.0,0.0595416]
[1767175839328,0.0001979,88868.0,88857.0,0.01805197]
[1767175839495,0.0001979,88868.0,88857.0,0.06707197]
[1767175839698,0.0001979,88868.0,88857.0,0.04897865]
[1767175840015,0.0001979,88868.0,88858.0,0.06034]
[1767175840231,0.01125239,88870.0,88858.0,0.06034]
[1767175840382,0.01125277,88867.0,88858.0,0.01132]
[1767175840555,0.01125277,88867.0,88859.0,0.01132]
[1767175840762,0.01125365,88860.0,88852.0,0.04902]
[1767175840960,0.06752042,88862.0,88853.0,0.01132]
[1767175841166,0.06752042,88862.0,88852.0,0.0489777]
[1767175841167,0.01125353,88861.0,88854.0,0.01132]
[1767175841369,0.01125391,88858.0,88854.0,0.01132]
[1767175841609,0.01125391,88858.0,88855.0,0.01132]
[1767175841963,0.01125378,88859.0,88849.0,0.04902]
[1767175842182,0.01125378,88859.0,88851.0,0.01805197]
[1767175842631,0.01125378,88859.0,88852.0,0.04902]
[1767175842825,0.01125416,88856.0,88852.0,0.06034]
[1767175843024,0.01125429,88855.0,88852.0,0.04902]
[1767175843226,0.01125416,88856.0,88853.0,0.06034]
[1767175843638,0.01125416,88856.0,88853.0,0.04902]
[1767175843839,0.01125403,88857.0,88854.0,0.06034]
[1767175844084,0.01125416,88856.0,88852.0,0.04902]
[1767175844275,0.01125403,88857.0,88855.0,0.01132]
[1767175844414,0.01125416,88856.0,88852.0,0.04902]
[1767175844625,0.01125416,88856.0,88853.0,0.01132]
[1767175844885,0.01125416,88856.0,88853.0,0.010771]
[1767175845087,0.01125429,88855.0,88851.0,0.06707197]
[1767175845235,0.01125416,88856.0,88854.0,0.01132]
[1767175846060,0.01125403,88857.0,88854.0,0.01132]
[1767175846982,0.01125416,88856.0,88852.0,0.05104]
[1767175847396,0.01125416,88856.0,88853.0,0.01132]
[1767175847541,0.01125416,88856.0,88852.0,0.05104]
[1767175847751,0.01125416,88856.0,88853.0,0.01132]
[1767175847947,0.01125416,88856.0,88852.0,0.05104]
[1767175848152,0.01125416,88856.0,88853.0,0.01132]
[1767175848522,0.01125416,88856.0,88852.0,0.05104]
[1767175848711,0.01125403,88857.0,88854.0,0.01132]
[1767175848911,0.01125403,88857.0,88854.0,0.01127845]
[1767175849114,0.01125403,88857.0,88852.0,0.05104]
[1767175849364,0.01125403,88857.0,88853.0,0.01132]
[1767175849662,0.01125416,88856.0,88853.0,0.01132]
[1767175850573,0.0675256,88856.0,88853.0,0.01132]
[1767175851958,0.05627203,88855.0,88854.0,0.01805197]
[1767175852156,0.0675256,88856.0,88854.0,0.01805197]
[1767175853490,0.01125416,88856.0,88854.0,0.01805197]
[1767175854066,0.01125403,88857.0,88854.0,0.01805197]
[1767175854578,0.01125403,88857.0,88854.0,0.02805197]
[1767175854790,0.01125454,88853.0,88841.0,0.04504]
[1767175854994,0.06752726,88853.0,88852.0,0.01805197]
[1767175855195,0.06752726,88853.0,88852.0,0.02937197]
[1767175857173,0.01125505,88849.0,88845.0,0.00062793]
[1767175857373,0.01125505,88849.0,88841.0,0.00035361]
[1767175857374,0.0112553,88847.0,88842.0,0.01132]
[1767175857616,0.01125555,88845.0,88842.0,0.01132]
[1767175858191,0.01125568,88844.0,88841.0,0.00035361]
[1767175858432,0.01125555,88845.0,88841.0,0.00035361]
[1767175858433,0.01125555,88845.0,88842.0,0.01132]
[1767175858639,0.01125517,88848.0,88842.0,0.01132]
[1767175858817,0.01125543,88846.0,88841.0,0.00035361]
[1767175859019,0.01125543,88846.0,88843.0,0.01132]
[1767175859771,0.01125517,88848.0,88843.0,0.01132]
[1767175859884,0.01125505,88849.0,88843.0,0.01132]
[1767175860096,0.01125517,88848.0,88843.0,0.01132]
[1767175860297,0.01125543,88846.0,88841.0,0.00035361]
[1767175860502,0.0112553,88847.0,88842.0,0.01132]
[1767175860706,0.01125492,88850.0,88842.0,0.01132]
[1767175860942,0.06130391,88858.0,88847.0,0.00055]
[1767175861206,0.44999483,88890.0,88855.0,1e-08]
[1767175861207,0.06130315,88864.0,88855.0,1e-08]
[1767175861409,0.01125315,88864.0,88855.0,1e-08]
[1767175861546,0.01125327,88863.0,88855.0,1e-08]
[1767175862517,0.01125315,88864.0,88855.0,1e-08]
[1767175862645,0.01125353,88861.0,88855.0,1e-08]
[1767175862852,0.01125327,88863.0,88855.0,1e-08]
[1767175863289,0.0112534,88862.0,88855.0,1e-08]
[1767175863472,0.01125327,88863.0,88855.0,1e-08]
[1767175864219,0.01125353,88861.0,88855.0,1e-08]
[1767175864422,0.01125327,88863.0,88855.0,1e-08]
[1767175864707,0.01125315,88864.0,88855.0,1e-08]
[1767175864884,0.01125327,88863.0,88855.0,1e-08]
[1767175865087,0.06751848,88865.0,88855.0,1e-08]
[1767175865298,0.01125315,88864.0,88855.0,1e-08]
[1767175866198,0.01125327,88863.0,88855.0,1e-08]
[1767175866407,0.01125315,88864.0,88855.0,1e-08]
[1767175866924,0.06751848,88865.0,88855.0,1e-08]
[1767175867125,0.01125315,88864.0,88855.0,1e-08]
[1767175867530,0.01125264,88868.0,88855.0,1e-08]
[1767175868281,0.06751588,88868.0,88855.0,0.02996259]
[1767175868524,0.01125277,88867.0,88855.0,0.02996259]
[1767175869294,0.01125264,88868.0,88855.0,0.02996259]
[1767175869493,0.01125277,88867.0,88855.0,0.02996259]
[1767175869722,0.01125277,88867.0,88855.0,1e-08]
[1767175870039,0.01125264,88868.0,88855.0,1e-08]
[1767175870206,0.13026554,88869.0,88855.0,1e-08]
[1767175870207,0.05143,88869.0,88855.0,1e-08]
[1767175870412,0.01125277,88867.0,88855.0,0.04649001]
[1767175870822,0.01125264,88868.0,88855.0,0.04649001]
[1767175871218,0.06268251,88869.0,88856.0,0.02996258]
[1767175871427,0.06268251,88869.0,88857.0,0.01132]
[1767175871766,0.01125264,88868.0,88857.0,0.01018163]
[1767175871922,0.06268251,88869.0,88857.0,0.01018163]
[1767175872136,0.01125264,88868.0,88857.0,0.01018163]
[1767175872285,0.06268251,88869.0,88857.0,0.01018163]
[1767175873043,0.01125289,88866.0,88857.0,0.01018163]
[1767175873469,0.01125289,88866.0,88857.0,0.01013812]
[1767175874044,0.01125302,88865.0,88857.0,0.00958912]
[1767175875539,0.01125289,88866.0,88857.0,0.00958912]
[1767175876929,0.01125277,88867.0,88857.0,0.00958912]
[1767175878603,0.01125302,88865.0,88857.0,0.00958912]
[1767175878785,0.01125289,88866.0,88857.0,0.00958912]
[1767175879631,0.01125302,88865.0,88857.0,0.00958912]
[1767175879779,0.01125315,88864.0,88857.0,0.00958912]
[1767175879984,0.01125302,88865.0,88857.0,0.00958912]
[1767175880180,0.01125315,88864.0,88857.0,0.00958912]
[1767175880388,0.01125302,88865.0,88857.0,0.00958912]
[1767175880582,0.0562642,88867.0,88857.0,0.00958912]
[1767175881286,0.01125302,88865.0,88857.0,0.00958912]
[1767175881489,0.04925,88862.0,88857.0,0.00958912]
[1767175881871,0.01125327,88863.0,88857.0,0.00958912]
[1767175882070,0.10551999,88858.0,88856.0,0.01132]
[1767175882325,0.10551999,88858.0,88856.0,0.01077]
[1767175882553,0.05626999,88858.0,88856.0,0.01077]
[1767175883432,0.01125403,88857.0,88846.0,0.0402345]
[1767175883685,0.06050403,88857.0,88847.0,0.01132]
[1767175883852,0.04925,88857.0,88847.0,0.01132]
[1767175884279,0.06050403,88857.0,88847.0,0.01132]
[1767175884479,0.04925,88857.0,88847.0,0.01132]
[1767175884638,0.04925,88857.0,88851.0,0.02250757]
[1767175884838,0.01125378,88859.0,88851.0,0.02250757]
[1767175885040,0.06752238,88860.0,88857.0,0.000549]
[1767175885241,0.06752238,88860.0,88853.0,0.05138]
[1767175885242,0.01125365,88860.0,88853.0,0.05138]
[1767175885454,0.01125365,88860.0,88851.0,0.02250757]
[1767175885850,0.01125378,88859.0,88847.0,0.0627]
[1767175886388,0.01125391,88858.0,88847.0,0.1029345]
[1767175886581,0.06752144,88861.0,88851.0,0.02250757]
[1767175887410,0.01125365,88860.0,88851.0,0.02250757]
[1767175887954,0.01125378,88859.0,88851.0,0.02250757]
[1767175888577,0.01125353,88861.0,88851.0,0.02250757]
[1767175889261,0.01125365,88860.0,88851.0,0.02250757]
[1767175889457,0.05626897,88859.0,88851.0,0.02250757]
[1767175889662,0.01125403,88857.0,88851.0,0.02250757]
[1767175889870,0.01125378,88859.0,88851.0,0.02250757]
[1767175890075,0.01125391,88858.0,88851.0,0.02250757]
[1767175891365,0.01125378,88859.0,88852.0,0.01132]
[1767175891775,0.01125378,88859.0,88851.0,0.03382757]
[1767175891971,0.01125391,88858.0,88851.0,0.03382757]
[1767175892175,0.01125416,88856.0,88851.0,0.03382757]
[1767175892377,0.01125403,88857.0,88851.0,0.03382757]
[1767175892833,0.01125391,88858.0,88851.0,0.03382757]
[1767175893326,0.0675238,88858.0,88851.0,0.03382757]
[1767175893520,0.01125391,88858.0,88851.0,0.03382757]
[1767175894145,0.01125403,88857.0,88851.0,0.03382757]
[1767175894355,0.01125416,88856.0,88851.0,0.02250757]
[1767175894514,0.01125416,88856.0,88849.0,0.01132]
[1767175894515,0.04925,88852.0,88849.0,0.01132]
[1767175894903,0.01125429,88855.0,88851.0,0.01]
[1767175895103,0.01125441,88854.0,88851.0,0.01]